Cogmind - Beta 13 @@@ ROGUE MODE // 2024.04.24 @ 19:51:35 Player: Aaron Result: Core destroyed Performance ------------- Evolutions (0) 0 Regions Visited (3) 600 Robots Destroyed (14) 70 Value Destroyed (232) 232 Prototype IDs (2) 40 Alien Tech Used (0) 0 Bonus (-15) -15 TOTAL SCORE: 927 Bonus ------- Friendly Fire -15 Cogmind --------- Core Integrity 0/250 Matter 239/300 Energy 156/160 System Corruption 7% Temperature Cool (13) Movement Walking (190) Ox1 Location -10/Exiles Parts ------- > --- POWER (1) -------- Light Nuclear Core > --- PROPULSION (2) --- Aluminum Leg > --- UTILITY (2) ------ Bomb Drone Bay (9/16) > --- WEAPON (2) ------- Beam Cannon Rocket Launcher > --- INVENTORY (5) ---- Improved Heat Sink Experimental Sensor Array Light Assault Rifle Light Cannon Peak State ------------ > --- POWER ------------ Light Nuclear Core > --- PROPULSION ------- Aluminum Leg Aluminum Leg > --- UTILITY ---------- Bomb Drone Bay > --- WEAPON ----------- Particle Gun Light Cannon > --- INVENTORY -------- Improved Heat Sink Experimental Sensor Array Datajack [Rating: 23] Favorites ----------- Power Light Nuclear Core Engine Ion Engine Power Core Light Nuclear Core Propulsion Compact Wheel Leg Aluminum Leg Wheel Compact Wheel Utility Bomb Drone Bay Device Bomb Drone Bay Weapon Mining Laser Energy Gun Particle Gun Energy Cannon Beam Cannon Ballistic Gun Light Assault Rifle Ballistic Cannon Light Cannon Launcher Rocket Launcher Special Weapon Mining Laser Special Melee Weapon Datajack Build | -11 -10 -10 -10 ------- Run | Yrd Mat Min Exi Slots Evolved . | . . . . Power . | . . . . Propulsion . | . . . . Utility . | . . . . Weapon . | . . . . Parts Attached 28 | 9 8 9 2 Power 3 | 1 2 . . Engine 2 | 1 1 . . Core 1 | . 1 . . Reactor . | . . . . Propulsion 5 | 2 1 2 . Treads . | . . . . Leg 2 | . . 2 . Wheel 3 | 2 1 . . Hover . | . . . . Flight . | . . . . Utility 5 | 2 . 3 . Device 5 | 2 . 3 . Storage . | . . . . Processor . | . . . . Hackware . | . . . . Protection . | . . . . Artifact . | . . . . Weapon 15 | 4 5 4 2 Energy Gun 1 | . . 1 . Energy Cannon 1 | . . . 1 Ballistic Gun 2 | 2 . . . Ballistic Cannon 1 | . . 1 . Launcher 2 | . 1 1 . Special Weapon 5 | 2 3 . . Impact Weapon . | . . . . Slashing Weapon . | . . . . Piercing Weapon . | . . . . Special Melee Weapon 3 | . 1 1 1 Unidentified Prototypes 2 | . . 2 . Parts Lost 15 | . 13 . 2 Power 2 | . 2 . . Propulsion 4 | . 3 . 1 Utility 2 | . 2 . . Weapon 7 | . 6 . 1 Highest Loss Streak 6 | . 6 . 2 To Critical Strikes . | . . . . Average Slot Usage (%) 62 | . 64 52 84 Engine 4 | . 12 . . Core 8 | . . 14 14 Leg 9 | . . 11 27 Wheel 7 | . 19 . . Device 15 | . 18 13 14 Energy Gun 2 | . . 4 . Ballistic Cannon 3 | . . 3 10 Launcher 3 | . 2 . 14 Special Weapon 2 | . 7 . . Special Melee Weapon 2 | . 1 4 3 Naked Turns . | . . . . Heaviest Build 20 | 9 11 20 20 Greatest Support 32 | 32 32 20 20 Greatest Overweight (x) 4 | . 1 4 . Average Overweight (x) . | . . 1 . Largest Inventory Capacity 5 | 5 5 5 5 Average Capacity 5 | 5 5 5 5 Most Carried 5 | 2 2 5 5 Average Carried 2 | 1 1 2 4 Final Capacity 5 | 5 5 5 5 Final Carried 5 | 2 1 5 4 Class Distribution -------------------- 71% | Mutant 28% | Scavenger-Mutant Dominant Class ---------------- Mutant | -10/Materials Mutant | -10/Mines Mutant | -10/Exiles Resources | -11 -10 -10 -10 ----------- Run | Yrd Mat Min Exi Matter Collected 504 | 328 47 129 . Remotely . | . . . . Salvage Created 360 | 156 158 46 . Parts 23 | 12 7 4 . Haulers Intercepted . | . . . . Recyclers Shooed 2 | . 2 . . Parts Field Recycled . | . . . . Retrieved Matter . | . . . . Parts Self-Destructed . | . . . . Prevented . | . . . . Kills | -11 -10 -10 -10 ------- Run | Yrd Mat Min Exi Combat Hostiles Destroyed 5 | . 5 . . Melee 1 | . 1 . . Cannons 1 | . 1 . . AOE 3 | . 3 . . Classes Destroyed 5 | 2 3 . . Worker 2 | . 1 1 . Tunneler 6 | 5 . 1 . Recycler 1 | 1 . . . Swarmer 1 | . 1 . . Grunt 4 | . 4 . . Best Kill Streak 3 | 3 3 1 . Combat Bots Only 3 | . 3 . . Max Kills in Single Turn 2 | 1 2 1 . Gunslinging . | . . . . Exploded 2 | . 2 . . Melee 1 | . 1 . . Uniques/NPCs Destroyed . | . . . . Combat | -11 -10 -10 -10 -------- Run | Yrd Mat Min Exi Hostile Shots Fired 87 | . 87 . . Missed 22 | . 22 . . Damage Taken 957 | . 681 36 240 Core 273 | . 198 . 75 Absorbed by Shields . | . . . . Core Remaining (%) 100 | 100 . . . Volleys Fired 48 | 20 17 10 1 Largest 2 | 2 2 1 2 Hottest 200 | 120 200 65 93 Shots Fired 74 | 39 22 10 3 Gun 48 | 38 . 10 . Cannon 1 | . . . 1 Launcher 6 | . 4 . 2 Special 19 | 1 18 . . Kinetic 38 | 38 . . . Thermal 30 | 1 18 10 1 Explosive 6 | . 4 . 2 Electromagnetic . | . . . . Robot Hit Streak 14 | 14 5 2 1 Robot Miss Streak 6 | 2 4 6 2 Penetration Max . | . . . . Secondary Targets . | . . . . Shots Hit Robots 45 | 28 10 5 2 Core Hits 35 | 12 21 2 . Critical Kills . | . . . . Critical Parts Destroyed . | . . . . Critical Strikes . | . . . . Melee Attacks 5 | . 3 1 1 Impact . | . . . . Slashing . | . . . . Piercing . | . . . . Sneak Attacks 4 | . 3 1 . Combat Hostiles . | . . . . Follow-up Attacks . | . . . . Damage Inflicted 756 | 240 371 77 68 Guns 293 | 216 . 77 . Cannons . | . . . . Explosions 369 | . 301 . 68 Melee . | . . . . Ramming 38 | . 38 . . Kinetic 216 | 216 . . . Thermal 133 | 24 32 77 . Explosive 369 | . 301 . 68 Electromagnetic . | . . . . Impact . | . . . . Slashing . | . . . . Piercing . | . . . . Highest Corruption 7 | . 7 7 7 Average Corruption 6 | . 5 7 7 Corruption Purged . | . . . . Corruption Blocked . | . . . . Effects 27 | . 8 12 7 Message Errors 6 | . 1 3 2 Matter Fused 8 | . 2 3 3 Heat Flow Errors 7 | . 4 3 . Energy Discharges 4 | . 1 3 . Data Loss (minor) 1 | . . . 1 Misfires 1 | . . . 1 Overload Shots . | . . . . Overflow Damage . | . . . . Projectiles . | . . . . Explosions . | . . . . Melee . | . . . . Knockbacks . | . . . . Impact . | . . . . Kinetic . | . . . . Secondary . | . . . . Self-Inflicted Damage 70 | . 46 . 24 Shots 3 | . 2 . 1 Rammed 20 | . 20 . . Targets Rammed 20 | . 20 . . Kicked . | . . . . Crushed . | . . . . Highest Temperature 265 | 40 265 252 13 Average Temperature 86 | 23 70 114 13 Received Heat Transfer 201 | . 201 . . Siege Activations . | . . . . Robots Corrupted . | . . . . Combat Hostiles . | . . . . Parts Fried . | . . . . Impact Corruptions . | . . . . Robots Melted . | . . . . Combat Hostiles . | . . . . Parts Melted 1 | . 1 . . Heat Transferred 335 | 50 100 185 . Parts Sabotaged . | . . . . Parts Stolen . | . . . . Parts Stripped . | . . . . Power Chain Reactions . | . . . . Alert | -11 -10 -10 -10 ------- Run | Yrd Mat Min Exi Peak Influence 144 | 30 144 42 . Initial 42 | . 19 42 . Average 53 | 15 97 28 . Maximum Alert Level . | . . . . Low Security (%) 100 | 100 100 100 . Level 1 . | . . . . Level 2 . | . . . . Level 3 . | . . . . Level 4 . | . . . . Level 5 . | . . . . High Security . | . . . . Max Security . | . . . . Squads Dispatched 1 | . 1 . . Investigation . | . . . . Extermination . | . . . . Reinforcement 1 | . 1 . . Assault . | . . . . Garrison . | . . . . Intercept . | . . . . Searches Triggered . | . . . . Construction Impeded . | . . . . Haulers Reinforced . | . . . . Active Scanning Responses . | . . . . Cargo Convoy Interrupts . | . . . . Stealth | -11 -10 -10 -10 --------- Run | Yrd Mat Min Exi Distress Signals 3 | . 3 . . Communications Jammed . | . . . . Distress Signals . | . . . . Times Spotted 22 | . 14 7 1 Peak Tracking Total 10 | . 5 2 10 Tactical Retreats 1 | . 1 . . Traps | -11 -10 -10 -10 ------- Run | Yrd Mat Min Exi Traps Triggered . | . . . . Indirectly . | . . . . Trap Hack Attempts . | . . . . Triggered . | . . . . Disarmed . | . . . . Reprogrammed . | . . . . Reused . | . . . . Traps Extracted . | . . . . Installed . | . . . . Triggered . | . . . . Machines | -11 -10 -10 -10 ---------- Run | Yrd Mat Min Exi Machines Disabled 4 | . 1 . 3 Max in Single Turn 2 | . 1 . 2 Machines Repaired . | . . . . Machines Dismantled . | . . . . Machines Sabotaged . | . . . . Overloaded Fab Kills . | . . . . Hacking | -11 -10 -10 -10 --------- Run | Yrd Mat Min Exi Machines Accessed 4 | . 3 1 . Terminals 3 | . 3 . . Fabricators . | . . . . Repair Stations . | . . . . Recycling Units . | . . . . Scanalyzers . | . . . . Garrison Access . | . . . . Total Hacks 10 | . 9 1 . Successful 5 | . 4 1 . Failed 5 | . 5 . . Catastrophic . | . . . . Database Lockouts . | . . . . Manual 8 | . 8 . . Terminals 9 | . 9 . . Fabricators . | . . . . Repair Stations . | . . . . Recycling Units . | . . . . Scanalyzers . | . . . . Garrison Access . | . . . . Terminal Hacks 2 | . 1 1 . Open Door 1 | . . 1 . Locate Traps 1 | . 1 . . Fabricator Hacks . | . . . . Repair Station Hacks . | . . . . Recycling Unit Hacks . | . . . . Scanalyzer . | . . . . Garrison Access Hacks . | . . . . Unauthorized Hacks 3 | . 3 . . Terminals 3 | . 3 . . Botnet 3 | . 3 . . Fabricators . | . . . . Repair Stations . | . . . . Recycling Units . | . . . . Scanalyzers . | . . . . Garrison Access . | . . . . Data Cores Recovered . | . . . . Used . | . . . . Hacking Detections 3 | . 3 . . Full Trace Events 2 | . 2 . . Feedback Events 1 | . 1 . . Corruption 1 | . 1 . . Feedback Blocked . | . . . . Robot Schematics Acquired . | . . . . Robots Built . | . . . . Authchips . | . . . . Time . | . . . . Total Robot Build Rating . | . . . . Part Schematics Acquired . | . . . . Parts Built . | . . . . Authchips . | . . . . Time . | . . . . Total Part Build Rating . | . . . . Parts Repaired . | . . . . Time . | . . . . Parts Recycled . | . . . . Recycled Matter . | . . . . Retrieved Matter . | . . . . Retrieved Components . | . . . . Parts Scanalyzed . | . . . . Part Schematics Acquired . | . . . . Parts Damaged . | . . . . Bothacking | -11 -10 -10 -10 ------------ Run | Yrd Mat Min Exi Used RIF Installer . | . . . . Robots Hacked 2 | . 1 1 . Non-combat 2 | . 1 1 . Combat . | . . . . Robot Hacks Applied 4 | . 3 1 . parse_system 1 | . 1 . . no_distress 2 | . 1 1 . check_alert 1 | . 1 . . Relay Couplers Released . | . . . . Fabnet Peak Effective % . | . . . . Robots Rewired . | . . . . Allies Hacked . | . . . . Hacks Repelled . | . . . . Allies | -11 -10 -10 -10 -------- Run | Yrd Mat Min Exi Total Allies . | . . . . Largest Group . | . . . . Highest-Rated Group . | . . . . Highest-Rated Ally . | . . . . Total Orders . | . . . . Ally Attacks 7 | . . 4 3 Total Damage . | . . . . Kills . | . . . . Allies Corrupted . | . . . . Allies Melted . | . . . . Intel | -11 -10 -10 -10 ------- Run | Yrd Mat Min Exi Robot Analysis Total . | . . . . Derelict Logs Recovered 1 | . . 1 . Drone Launches 7 | . . 5 2 Drone Recoveries . | . . . . Exploration | -11 -10 -10 -10 ------------- Run | Yrd Mat Min Exi Turns Passed 1190 | 154 398 466 172 Spaces Moved 781 | 83 277 285 136 Core 178 | 1 19 158 . Treads . | . . . . Legs 263 | . . 127 136 Wheels 340 | 82 258 . . Hover . | . . . . Flight . | . . . . Fastest Speed 50 | 50 100 100 120 Average Speed 119 | 99 100 145 120 Slowest Speed 250 | 100 100 250 120 Overloaded Moves . | . . . . Propulsion Burnouts . | . . . . Robots Hopped . | . . . . Cave-ins Triggered . | . . . . Exploration Rate (%) 37 | 4 40 69 37 Regions Visited 3 Branch Regions 2 Pre-discovered Areas . | . . . . Known Exits Taken . | . . . . Unknown Exits Taken 3 | 1 1 1 . Scrap Searched 2 | . . 2 . Spaces Dug 4 | . 4 . . Terrain Destroyed 36 | . 28 . 8 Melee . | . . . . Projectile 7 | . 7 . . AOE 29 | . 21 . 8 Terrain Rammed . | . . . . Walls Destroyed . | . . . . Machines Disabled . | . . . . Actions | -11 -10 -10 -10 --------- Run | Yrd Mat Min Exi Total 931 | 117 345 326 143 Wait 35 | 2 19 11 3 Move 778 | 82 276 284 136 Hop . | . . . . Pick Up 8 | 2 1 5 . Fast Attach 21 | 9 5 7 . Attach 6 | . 3 2 1 Detach 4 | . 1 3 . Swap 1 | . . . 1 Drop 5 | 2 . 3 . Fire 48 | 20 17 10 1 Melee 5 | . 3 1 1 Ram 20 | . 20 . . Kick . | . . . . Crush . | . . . . Escape Stasis . | . . . . Rewire . | . . . . Trap . | . . . . Miscellaneous . | . . . . Route ------- -11/Scrapyard -10/Materials (discovered 2 exits: [*Mat] / *Min) -10/Mines (discovered 2 exits: [*Mat] / [*Exi]) -10/Exiles (discovered 1 exit: [*Min]) History --------- Turn | Location | Event 28 | -11/Scrapyard | Discovered new exit (range 15) 155 | -11/Scrapyard | Entered Materials 362 | -10/Materials | Lost 6 parts (1p2n1u2w) 399 | -10/Materials | Discovered new exit (range 4) 468 | -10/Materials | Discovered new exit (range 11) 504 | -10/Materials | Build established: Mutant 519 | -10/Materials | Core integrity fell below 50% 553 | -10/Materials | Entered Mines 556 | -10/Mines | Found the Drone Emporium 560 | -10/Mines | Found Prototype Device 560 | -10/Mines | Identified Bomb Drone Bay 570 | -10/Mines | Met a Derelict bent on vengeance 577 | -10/Mines | Lost 5 parts (1p1n1u2w) 627 | -10/Mines | Found a damaged Exp. Sensor Array with a note attached 633 | -10/Mines | Found Prototype Device 633 | -10/Mines | Identified Exp. Sensor Array 667 | -10/Mines | Learned Materials emergency access door positions 902 | -10/Mines | Discovered new exit (range 13) 988 | -10/Mines | Received a Rocket Launcher from a helpful Derelict 1013 | -10/Mines | Deemed a non-threat by the Exiles lab entrance 1013 | -10/Mines | Discovered new exit (range 6) 1019 | -10/Mines | Entered Exiles 1019 | -10/Exiles | Accompanied by 1 ally 1042 | -10/Exiles | Discovered new exit (range 14) 1078 | -10/Exiles | Met 8R-AWN 1096 | -10/Exiles | Met EX-HEX 1183 | -10/Exiles | Met EX-BIN 1188 | -10/Exiles | Attacked by the Exiles 1191 | -10/Exiles | Core integrity fell below 20% 1191 | -10/Exiles | Core destroyed Last Messages --------------- Machine disabled. Bomb Drone detonates. Bomb Drone destroyed. BIN's Workstation disabled. Datajack destroyed. Aluminum Leg destroyed. Bomb Drone released from Bomb Drone Bay. EX-BIN: "I just want to science!" Bomb Drone detonates. Bomb Drone destroyed. 81-V2Q(z) destroyed. BIN's Terminal disabled. Bomb Drone released from Bomb Drone Bay. Bomb Drone sneak attacks. Bomb Drone detonates. Bomb Drone destroyed. EX-BIN: "You can't kill me, my evil twin will get revenge!" EX-BIN destroyed. [Achievement: Achiever] Map ----- +----------------------------------------------------+ | ?????????????????????????????????????????????????? | | ?????????????????????????????????????????????????? | | ?????????????????????????????????????????????????? | | ?????????????????????????????????????????????????? | | ?????????????????????????????????????????????????? | | ?????????????????????????????????????????????????? | | ?????????????????????????????????????????????????? | | ?????????????????????????????????????????????????? | | ?????????????????????????? ?????????????????????? | | ??????????????????????? ?????????????????????? | | ??????????????????????# #????????????????????? | | ??????????????????????# #????????????????????? | | ??????????????????????# #????????????????????? | | ??????????????????????# #??"""""?????????????? | | ??????????????????????# #??"""""?????????????? | | ?????????????????????## ###"" """????????????? | | ?????????????????????#" """"???????????? | | ?????????????????????#" """???????????? | | ????????????????????##" """???????????? | | ???????????????????## """???????????? | | ??????????????????## """???????????? | | ??????????????????# """???????????? | | ??????????????????# =! """"??????????? | | ??????????????????# %!! """#??????????? | | ??????????????????# """"??????????? | | ??????????????????# @ #??????????? | | ??????????????????# """#??????????? | | ??????????????????# ####???????????? | | ??????????????????## ###??????????????? | | ???????????????##### #??????????????????? | | ???????????????#""""" ##??????????????????? | | ??????????????"""" " "" ##???###########????? | | ????????????"" """ " #####"""""""""##???? | | ????????? " " " """ """"##??? | | ????????? "" " #??? | | ????????? " """#??? | | ????????? " "#??? | | ????????? " "##?? | | ????????? ""### | | ????????? """""" """# | | ?????????? ######""" "# | | ?????????? ""#?????#####""" # | | ??????????? """#??????????##""" | | ??????????? ????????????????#"""" | | ?????????????????????????????#"" | | ?????????????????????????????"""" | | ???????????????????????????"" | | ??????????????????????????" | | ?????????????????????????? | | ?????????????????????????? | +----------------------------------------------------+ Best States ------------- Heat Dissipation 25 Energy Generation 14 Energy Capacity 250 Matter Stores 300 Matter Capacity 300 Sight Range 16 Robot Scan Range 20 Terrain Scan Range 16 Terrain Scan Density 10 Evasion (%) 55 Item Schematics ----------------- None Robot Schematics ------------------ None Fabricated ------------ Nothing Alien Tech Used ----------------- None Achievements -------------- Achiever Quantum Hacking Challenges ------------ None Game ------ Seed ReactionGrapheneArmor Manual? 0 Play Time 00:18:04 Cumulative 24.2 hours Start 2024.04.24 @ 19:34:10 End 2024.04.24 @ 19:51:35 Sessions 1 Manual Loads 0 Difficulty Rogue Special Mode None Game No. 14 Rogue 14 Adventurer 0 Explorer 0 Win Type - Total 0 Types 0/0/0/0/0/0/0/0/0 Lore% 17 Gallery% 27 Achievement% 25 Wizard Run 0 Options --------- Layout 1 ASCII 0 Keyboard 0 Movement Mouse Keybinds 0 Fullscreen 2 Font 32/SmallcapsGlow Map View 50x35 Zoom Use 0% Tactical HUD 0 Map Filters NONE Filters NONE Steam 1 RUN: 74337afa-d095-494b-9d44-e4c654e62a0c